Cogmind - Beta 17 @@@ ROGUE MODE // 2026.08.01 @ 07:55:42 Player: ChCbias Result: Destroyed by TY-J71(R) with Subdweller Beam Cannon Performance ------------- Evolutions (0) 0 Regions Visited (2) 400 Robots Destroyed (27) 135 Value Destroyed (692) 692 Prototype IDs (2) 40 Alien Tech Used (0) 0 Bonus (0) 0 TOTAL SCORE: 1267 Bonus ------- None Cogmind --------- Core Integrity 0/250 Matter 201/300 Energy 250/250 System Corruption 5% Temperature Cool (9) Movement Core (900) Ox17 Location -10/Subcaves Parts ------- > --- POWER (1) -------- Ion Engine > --- PROPULSION (2) --- (None) > --- UTILITY (2) ------ High-capacity Storage Unit Core Shielding > --- WEAPON (2) ------- Heavy Assault Rifle Grenade Launcher > --- INVENTORY (20) --- Light Ion Engine Subdweller Monowheel Flight Unit Flight Unit Flight Unit Improved Heat Sink Subdweller Optics Terrain Scanner Medium Laser Small Laser Small Laser Subdweller Laser Light Assault Rifle Heavy Assault Rifle Heavy Assault Rifle Subdweller Machine Gun Mace Scrap Shield Fragment (49) Peak State ------------ > --- POWER ------------ Ion Engine > --- PROPULSION ------- Light Treads Subdweller Monowheel > --- UTILITY ---------- High-capacity Storage Unit Targeting Computer > --- WEAPON ----------- Heavy Assault Rifle Heavy Assault Rifle > --- INVENTORY -------- Light Ion Engine Flight Unit Flight Unit Flight Unit Improved Heat Sink Subdweller Optics Terrain Scanner Core Shielding Medium Laser Small Laser Small Laser Subdweller Laser Light Assault Rifle Heavy Assault Rifle Heavy Assault Rifle Grenade Launcher Mace Scrap Shield Fragment [Rating: 12] Favorites ----------- Power Ion Engine Engine Ion Engine Propulsion Light Treads Treads Light Treads Wheel Subdweller Monowheel Utility High-capacity Storage Unit Storage High-capacity Storage Unit Processor Targeting Computer Protection Core Shielding Weapon Heavy Assault Rifle Energy Gun Medium Laser Ballistic Gun Heavy Assault Rifle Launcher Grenade Launcher Build | -11 -10 -10 ------- Run | Yrd Mat Sub Slots Evolved . | . . . Power . | . . . Propulsion . | . . . Utility . | . . . Weapon . | . . . Parts Attached 17 | 6 7 4 Power 1 | 1 . . Engine 1 | 1 . . Core . | . . . Reactor . | . . . Propulsion 3 | 2 . 1 Treads 2 | 2 . . Leg . | . . . Wheel 1 | . . 1 Hover . | . . . Flight . | . . . Utility 4 | 1 3 . Device . | . . . Storage 2 | 1 1 . Processor 1 | . 1 . Hackware . | . . . Protection 1 | . 1 . Artifact . | . . . Weapon 9 | 2 4 3 Energy Gun 3 | 2 . 1 Energy Cannon . | . . . Ballistic Gun 5 | . 3 2 Ballistic Cannon . | . . . Launcher 1 | . 1 . Special Weapon . | . . . Impact Weapon . | . . . Slashing Weapon . | . . . Piercing Weapon . | . . . Special Melee Weapon . | . . . Unidentified Prototypes . | . . . Parts Lost 6 | . 2 4 Power . | . . . Propulsion 2 | . . 2 Utility 1 | . . 1 Weapon 3 | . 2 1 Highest Loss Streak 3 | . 1 3 To Critical Strikes . | . . . Average Backups 14 | 2 12 17 Power . | . 1 1 Propulsion 3 | 1 3 3 Utility 2 | . 2 3 Weapon 7 | . 6 9 Tool/Special . | . . . Unused Backups 21 | . 4 17 Power 1 | . . 1 Propulsion 9 | . 4 5 Utility 3 | . . 3 Weapon 8 | . . 8 Tool/Special . | . . . Average Slot Usage (%) 96 | . 98 93 Engine 14 | . 14 14 Treads 25 | . 27 20 Storage 14 | . 14 14 Processor 10 | . 12 6 Protection 2 | . . 6 Energy Gun 12 | . 15 6 Ballistic Gun 15 | . 12 21 Peak Build Rating 12 | 6 10 12 Average Rating 9 | 4 8 10 On Entrance 5 | . 6 10 Avg Prop Armor Cover (%) 12 | . . 12 Naked Turns . | . . . Heaviest Build 53 | 14 50 53 Greatest Support 40 | 40 40 40 Greatest Overweight (x) 2 | . 1 2 Average Overweight (x) . | . . 1 Largest Inventory Capacity 20 | 8 20 20 Average Capacity 17 | 6 16 20 Most Carried 20 | 6 18 20 Average Carried 14 | 2 13 18 Final Capacity 20 | 8 20 20 Final Carried 18 | 6 18 18 Class Distribution -------------------- 100% | Mutant Dominant Class ---------------- Mutant | -10/Materials Mutant | -10/Subcaves Resources | -11 -10 -10 ----------- Run | Yrd Mat Sub Matter Collected 690 | 199 296 195 Remotely . | . . . Salvage Created 807 | . 581 226 Parts 52 | . 34 18 Haulers Intercepted 2 | . 2 . Recyclers Shooed 3 | . 3 . Parts Field Recycled . | . . . Retrieved Matter . | . . . Parts Self-Destructed 5 | . . 5 Prevented . | . . . Parts Restored . | . . . Kills | -11 -10 -10 ------- Run | Yrd Mat Sub Combat Hostiles Destroyed 20 | . 14 6 Guns 15 | . 10 5 AOE 5 | . 4 1 Classes Destroyed 7 | . 6 1 Builder 1 | . 1 . Hauler 2 | . 2 . Operator 1 | . 1 . Watcher 3 | . 3 . Swarmer 5 | . 5 . Grunt 9 | . 9 . Subdweller 6 | . . 6 Best Kill Streak 5 | . 5 1 Combat Bots Only 5 | . 5 1 Max Kills in Single Turn 4 | . 4 1 Gunslinging . | . . . Exploded 4 | . 4 1 Melee . | . . . Uniques/NPCs Destroyed . | . . . Combat | -11 -10 -10 -------- Run | Yrd Mat Sub Hostile Shots Fired 105 | . 63 42 Missed 32 | . 18 14 Hits 73 | . 45 28 Projectile 73 | . 45 28 AOE 1 | . 1 . Critical Strikes 2 | . . 2 Damage Taken 1173 | . 565 608 Core 264 | . 121 143 Absorbed by Shields . | . . . Redirected to Shielding 16 | . 2 14 Regen/Repaired (Parts) 90 | . 90 . Core Remaining (%) 100 | 100 . . Volleys Fired 93 | . 58 35 Largest 2 | . 2 2 Hottest 90 | . 90 63 Shots Fired 176 | . 110 66 Gun 166 | . 107 59 Cannon . | . . . Launcher 10 | . 3 7 Special . | . . . Kinetic 82 | . 37 45 Thermal 58 | . 58 . Explosive 10 | . 3 7 Electromagnetic 26 | . 12 14 Robot Hit Streak 16 | . 16 15 Robot Miss Streak 4 | . 4 1 Penetration Max . | . . . Secondary Targets . | . . . Shots Hit Robots 130 | . 81 49 Core Hits 52 | 2 35 15 Critical Kills . | . . . Critical Parts Destroyed . | . . . Critical Strikes 7 | . 6 1 Burn 6 | . 6 . Corrupt 1 | . . 1 Melee Attacks . | . . . Impact . | . . . Slashing . | . . . Piercing . | . . . Sneak Attacks . | . . . Combat Hostiles . | . . . Follow-up Attacks . | . . . Damage Inflicted 2149 | 14 1225 910 Guns 1487 | . 1037 450 Cannons . | . . . Explosions 620 | . 160 460 Melee . | . . . Ramming 42 | 14 28 . Kinetic 769 | . 375 394 Thermal 574 | . 574 . Explosive 620 | . 160 460 Electromagnetic 144 | . 88 56 Impact . | . . . Slashing . | . . . Piercing . | . . . Highest Corruption 5 | . 5 5 Average Corruption 4 | . 4 5 Corruption Purged . | . . . Corruption Blocked . | . . . Effects 54 | . 28 26 Message Errors 11 | . 4 7 Matter Fused 11 | . 8 3 Heat Flow Errors 8 | . 4 4 Energy Discharges 6 | . 5 1 Parts Fused 1 | . . 1 Data Loss (minor) 7 | . 3 4 Data Loss (major) 3 | . 2 1 Misfires 5 | . 2 3 Alerts 2 | . . 2 Overload Shots . | . . . Overflow Damage . | . . . Projectiles . | . . . Explosions . | . . . Melee . | . . . Knockbacks . | . . . Impact . | . . . Kinetic . | . . . Secondary . | . . . Self-Inflicted Damage . | . . . Shots . | . . . Rammed 15 | 5 10 . Targets Rammed 15 | 5 10 . Kicked . | . . . Crushed . | . . . Highest Temperature 288 | . 288 195 Average Temperature 71 | . 70 95 Received Heat Transfer 363 | . 177 186 Siege Activations . | . . . Martial Activations . | . . . Shielding Activations . | . . . Robots Disrupted . | . . . Combat Hostiles . | . . . Robots Corrupted . | . . . Combat Hostiles . | . . . Parts Fried . | . . . Impact Corruptions . | . . . Robots Melted . | . . . Combat Hostiles . | . . . Parts Melted 3 | . 3 . Heat Transferred 2146 | . 2146 . Parts Sabotaged . | . . . Parts Stolen . | . . . Parts Stripped . | . . . Power Chain Reactions . | . . . Alert | -11 -10 -10 ------- Run | Yrd Mat Sub Maximum Alert Level . | . . . Low Security (%) 100 | 100 100 . Level 1 . | . . . Level 2 . | . . . Level 3 . | . . . Level 4 . | . . . Level 5 . | . . . High Security . | . . . Max Security . | . . . Peak Influence 138 | . 138 . Initial . | . . . Average 37 | . 39 . Influence Increases 476 | . 476 . Destroy 0b10 Robot/C 280 | . 280 . Destroy 0b10 Robot/NC 35 | . 35 . Destroy Leader 80 | . 80 . Successful Hack 24 | . 24 . Disable Machine 15 | . 15 . Destroy Structure 12 | . 12 . Partial Spotted 15 | . 15 . Lose Combat Pursuer 15 | . 15 . Influence Decreases 476 | . 472 4 Entered New Map 3 | . . 3 Time Decay 464 | . 463 1 Lost Part 9 | . 9 . Squads Dispatched 4 | . 4 . Investigation 2 | . 2 . Extermination . | . . . Reinforcement 2 | . 2 . Assault . | . . . Garrison . | . . . Intercept . | . . . Searches Triggered . | . . . Construction Impeded . | . . . Haulers Reinforced . | . . . Active Scanning Responses . | . . . Cargo Convoy Interrupts . | . . . Stealth | -11 -10 -10 --------- Run | Yrd Mat Sub Distress Signals 4 | . 4 . Communications Jammed . | . . . Distress Signals . | . . . Times Spotted 33 | . 26 7 Peak Tracking Total 5 | . 5 2 Tactical Retreats 1 | . 1 . Traps | -11 -10 -10 ------- Run | Yrd Mat Sub Traps Triggered 4 | . 4 . Indirectly . | . . . Trap Hack Attempts . | . . . Triggered . | . . . Disarmed . | . . . Reprogrammed . | . . . Reused . | . . . Traps Extracted . | . . . Installed . | . . . Triggered . | . . . Machines | -11 -10 -10 ---------- Run | Yrd Mat Sub Machines Disabled 1 | . 1 . Max in Single Turn 1 | . 1 . Machines Repaired . | . . . Machines Dismantled . | . . . Machines Sabotaged . | . . . Overloaded Fab Kills . | . . . Hacking | -11 -10 -10 --------- Run | Yrd Mat Sub Machines Accessed 6 | . 6 . Terminals 4 | . 4 . Fabricators . | . . . Repair Stations 1 | . 1 . Recycling Units 1 | . 1 . Scanalyzers . | . . . Garrison Access . | . . . Total Hacks 15 | . 15 . Successful 8 | . 8 . Failed 7 | . 7 . Catastrophic 1 | . 1 . Database Lockouts . | . . . Manual 4 | . 4 . Terminals 12 | . 12 . Fabricators . | . . . Repair Stations 2 | . 2 . Recycling Units 1 | . 1 . Scanalyzers . | . . . Garrison Access . | . . . Terminal Hacks 4 | . 4 . Prototype ID Bank 1 | . 1 . Locate Traps 1 | . 1 . Hauler Manifests 1 | . 1 . Registered Components 1 | . 1 . Fabricator Hacks . | . . . Repair Station Hacks 2 | . 2 . Scan Component 1 | . 1 . Repair 1 | . 1 . Recycling Unit Hacks . | . . . Scanalyzer . | . . . Garrison Access Hacks . | . . . Unauthorized Hacks 2 | . 2 . Terminals 1 | . 1 . Botnet 1 | . 1 . Fabricators . | . . . Repair Stations . | . . . Recycling Units 1 | . 1 . Recyclers 1 | . 1 . Scanalyzers . | . . . Garrison Access . | . . . Data Cores Recovered . | . . . Used . | . . . Hacking Detections 5 | . 5 . Full Trace Events 1 | . 1 . Feedback Events . | . . . Feedback Blocked . | . . . Robot Schematics Acquired . | . . . Robots Built . | . . . Authchips . | . . . Time . | . . . Total Robot Build Rating . | . . . Part Schematics Acquired . | . . . Parts Built . | . . . Authchips . | . . . Time . | . . . Total Part Build Rating . | . . . Part Studies Acquired . | . . . Parts Repaired 1 | . 1 . Time 26 | . 26 . Parts Recycled . | . . . Recycled Matter . | . . . Retrieved Matter . | . . . Retrieved Components . | . . . Parts Scanalyzed . | . . . Part Schematics Acquired . | . . . Parts Damaged . | . . . Bothacking | -11 -10 -10 ------------ Run | Yrd Mat Sub Used RIF Installer . | . . . Robots Hacked . | . . . Non-combat . | . . . Combat . | . . . Robot Hacks Applied . | . . . Relay Couplers Released . | . . . Fabnet Peak Effective % . | . . . Robots Rewired . | . . . Allies Hacked . | . . . Hacks Repelled . | . . . Allies | -11 -10 -10 -------- Run | Yrd Mat Sub Total Allies . | . . . Largest Group . | . . . Highest-Rated Group . | . . . Highest-Rated Ally . | . . . Total Orders . | . . . Ally Attacks . | . . . Total Damage . | . . . Kills . | . . . Allies Corrupted . | . . . Allies Melted . | . . . Intel | -11 -10 -10 ------- Run | Yrd Mat Sub Active Infowar (turns) . | . . . Robot Analysis Total . | . . . Derelict Logs Recovered 1 | . . 1 Drone Launches . | . . . Drone Recoveries . | . . . Exploration | -11 -10 -10 ------------- Run | Yrd Mat Sub Turns Passed 3211 | 108 2041 1062 Spaces Moved 1248 | 58 826 364 Core 6 | 6 . . Treads 1183 | 52 826 305 Legs . | . . . Wheels 59 | . . 59 Hover . | . . . Flight . | . . . Fastest Speed 50 | 50 160 130 Average Speed 223 | 148 215 251 Slowest Speed 320 | 160 240 320 Overloaded Moves . | . . . Propulsion Burnouts . | . . . Robots Hopped . | . . . Potential Cave-ins . | . . . Cave-ins Triggered . | . . . Exploration Rate (%) 42 | 4 98 25 Regions Visited 2 Branch Regions 1 Pre-discovered Areas . | . . . Known Exits Taken . | . . . Unknown Exits Taken 2 | 1 1 . Scrap Searched 3 | . . 3 Spaces Dug . | . . . Terrain Destroyed 29 | . 9 20 Melee . | . . . Projectile . | . . . AOE 29 | . 9 20 Terrain Rammed . | . . . Walls Destroyed . | . . . Machines Disabled . | . . . Actions | -11 -10 -10 --------- Run | Yrd Mat Sub Total 1486 | 74 965 447 Wait 70 | . 41 29 Move 1247 | 58 825 364 Hop . | . . . Pick Up 29 | 6 17 6 Fast Attach 8 | 6 2 . Attach 5 | . 2 3 Detach 1 | . . 1 Swap 10 | . 5 5 Drop 9 | . 5 4 Fire 93 | . 58 35 Melee . | . . . Ram . | . . . Kick . | . . . Crush 14 | 4 10 . Escape Stasis . | . . . Rewire . | . . . Trap . | . . . Miscellaneous . | . . . Route ------- -11/Scrapyard -10/Materials (discovered 5 exits: [*Mat x3] / [*Min] / [*Sub]) -10/Subcaves History --------- Turn | Location | Event 11 | -11/Scrapyard | Discovered new exit (range 16) 109 | -11/Scrapyard | Entered Materials 325 | -10/Materials | Build established: Mutant 503 | -10/Materials | Discovered new exit (range 15) 516 | -10/Materials | Discovered new exit (range 12) 777 | -10/Materials | Discovered new exit (range 12) 1023 | -10/Materials | Discovered new exit (range 16) 1566 | -10/Materials | Repaired Lgt. Treads 1857 | -10/Materials | Discovered new exit (range 15) 2150 | -10/Materials | Entered Subcaves 2150 | -10/Subcaves | Learned Materials terminal intel 2237 | -10/Subcaves | Core integrity fell below 50% 2638 | -10/Subcaves | Core integrity fell below 20% 2697 | -10/Subcaves | Lost 3 parts (1n1u1w) 3212 | -10/Subcaves | Destroyed by TY-J71(R) with Subdweller Beam Cannon Last Messages --------------- Hvy. Assault Rifle. 02842_ System corrupted: Hvy. Assault Rifle misfires. 02879_ System corrupted: Component data lost. 02942_ TJAIBNWJZ:XT#QCQFI/%R